[Event "Titled Tuesday Blitz February 15 Early 2022"]
[White "Loy, Konstantin"]
[Black "Volkov, Maksim"]
[WhiteFideId "14122499"]
[BlackFideId "54123070"]
[WhiteElo "2084"]
[BlackElo "2081"]
[Result "0-1"]
[Round "11"]
[TimeControl "180+1"]
[Date "2022.02.15"]
[WhiteClock "0:00:04"]
[BlackClock "0:01:03"]

1. e4 {[%clk 0:03:00]}  c5 {[%clk 0:02:59]} 2. Nf3 {[%clk 0:03:00]}  d6 {[%clk 0:03:00]} 3. d4 {[%clk 0:03:01]}  cxd4 {[%clk 0:03:01]} 4. Qxd4 {[%clk 0:03:01]}  Nf6 {[%clk 0:03:01]} 5. e5 {[%clk 0:03:01]}  Nc6 {[%clk 0:02:51]} 6. Bb5 {[%clk 0:03:01]}  Ng4 {[%clk 0:02:32]} 7. exd6 {[%clk 0:02:45]}  Qxd6 {[%clk 0:02:29]} 8. Qxd6 {[%clk 0:02:44]}  exd6 {[%clk 0:02:30]} 9. O-O {[%clk 0:02:37]}  Be7 {[%clk 0:02:29]} 10. Re1 {[%clk 0:02:30]}  a6 {[%clk 0:02:23]} 11. Bxc6+ {[%clk 0:02:03]}  bxc6 {[%clk 0:02:24]} 12. h3 {[%clk 0:01:58]}  Nf6 {[%clk 0:02:22]} 13. Bf4 {[%clk 0:01:54]}  Be6 {[%clk 0:02:12]} 14. Nd4 {[%clk 0:01:54]}  Kd7 {[%clk 0:02:11]} 15. Nxe6 {[%clk 0:01:43]}  fxe6 {[%clk 0:02:11]} 16. Nc3 {[%clk 0:01:43]}  e5 {[%clk 0:02:09]} 17. Bh2 {[%clk 0:01:38]}  Rab8 {[%clk 0:02:09]} 18. b3 {[%clk 0:01:38]}  Rhf8 {[%clk 0:02:03]} 19. Rad1 {[%clk 0:01:36]}  Kc7 {[%clk 0:02:03]} 20. f4 {[%clk 0:01:27]}  Nd7 {[%clk 0:01:53]} 21. fxe5 {[%clk 0:01:24]}  Nxe5 {[%clk 0:01:53]} 22. Bxe5 {[%clk 0:01:22]}  dxe5 {[%clk 0:01:54]} 23. Rxe5 {[%clk 0:01:13]}  Bf6 {[%clk 0:01:54]} 24. Re3 {[%clk 0:01:13]}  Rbd8 {[%clk 0:01:54]} 25. Rxd8 {[%clk 0:01:08]}  Rxd8 {[%clk 0:01:53]} 26. Rf3 {[%clk 0:00:42]}  Rd2 {[%clk 0:01:52]} 27. Kh1 {[%clk 0:00:35]}  Rxc2 {[%clk 0:01:47]} 28. Ne4 {[%clk 0:00:28]}  Rc1+ {[%clk 0:01:44]} 29. Kh2 {[%clk 0:00:27]}  Be5+ {[%clk 0:01:45]} 30. g3 {[%clk 0:00:24]}  Kb6 {[%clk 0:01:42]} 31. Kg2 {[%clk 0:00:19]}  a5 {[%clk 0:01:37]} 32. Rf2 {[%clk 0:00:18]}  Re1 {[%clk 0:01:35]} 33. Nd2 {[%clk 0:00:18]}  Bd4 {[%clk 0:01:31]} 34. Nc4+ {[%clk 0:00:14]}  Kb5 {[%clk 0:01:27]} 35. Rd2 {[%clk 0:00:14]}  c5 {[%clk 0:01:25]} 36. h4 {[%clk 0:00:10]}  Kb4 {[%clk 0:01:23]} 37. Kf3 {[%clk 0:00:09]}  a4 {[%clk 0:01:19]} 38. Nd6 {[%clk 0:00:05]}  axb3 {[%clk 0:01:16]} 39. axb3 {[%clk 0:00:06]}  Kxb3 {[%clk 0:01:13]} 40. Nb5 {[%clk 0:00:06]}  Be5 {[%clk 0:01:03]} 41. Rd3+ {[%clk 0:00:04]}  Kc4 {[%clk 0:01:03]} 0-1


[Site "https://www.chess.com"]

[Event "Titled Tuesday Blitz February 15 Early 2022"]
[White "Martin Carmona, Gaston Manuel"]
[Black "Samunenkov, Ihor"]
[WhiteFideId "22284567"]
[BlackFideId "14187086"]
[WhiteElo "2161"]
[BlackElo "2406"]
[Result "0-1"]
[Round "11"]
[TimeControl "180+1"]
[Date "2022.02.15"]
[WhiteClock "0:02:21"]
[BlackClock "0:01:12"]

1. e4 {[%clk 0:03:00]}  c5 {[%clk 0:02:59]} 2. Nc3 {[%clk 0:03:00]}  Nc6 {[%clk 0:02:59]} 3. Nf3 {[%clk 0:03:00]}  g6 {[%clk 0:03:00]} 4. d4 {[%clk 0:02:56]}  cxd4 {[%clk 0:03:00]} 5. Nxd4 {[%clk 0:02:57]}  Bg7 {[%clk 0:03:01]} 6. Nb3 {[%clk 0:02:58]}  d6 {[%clk 0:03:00]} 7. Be2 {[%clk 0:02:58]}  Nf6 {[%clk 0:03:01]} 8. O-O {[%clk 0:02:59]}  O-O {[%clk 0:03:01]} 9. Bg5 {[%clk 0:02:58]}  Be6 {[%clk 0:02:56]} 10. Kh1 {[%clk 0:02:58]}  Ne5 {[%clk 0:02:31]} 11. f4 {[%clk 0:02:53]}  Nc4 {[%clk 0:02:29]} 12. f5 {[%clk 0:02:49]}  Nxb2 {[%clk 0:02:18]} 13. Qc1 {[%clk 0:02:44]}  Bc4 {[%clk 0:02:04]} 14. Qxb2 {[%clk 0:02:41]}  Bxe2 {[%clk 0:01:44]} 15. Bxf6 {[%clk 0:02:40]}  Bxf6 {[%clk 0:01:42]} 16. fxg6 {[%clk 0:02:41]}  Bxf1 {[%clk 0:01:41]} 17. gxh7+ {[%clk 0:02:37]}  Kh8 {[%clk 0:01:38]} 18. Rxf1 {[%clk 0:02:38]}  Be5 {[%clk 0:01:30]} 19. Rf3 {[%clk 0:02:30]}  Rc8 {[%clk 0:01:29]} 20. Qa1 {[%clk 0:02:29]}  Qc7 {[%clk 0:01:18]} 21. Qf1 {[%clk 0:02:21]}  Bxc3 {[%clk 0:01:16]} 22. Rxf7 {[%clk 0:02:21]}  Bg7 {[%clk 0:01:12]} 0-1


[Site "https://www.chess.com"]

[Event "Titled Tuesday Blitz February 15 Early 2022"]
[White "Martirosyan, Haik M."]
[Black "Paravyan, David"]
[WhiteFideId "13306553"]
[BlackFideId "4194985"]
[WhiteElo "2735"]
[BlackElo "2569"]
[Result "1-0"]
[Round "11"]
[TimeControl "180+1"]
[Date "2022.02.15"]
[WhiteClock "0:01:29"]
[BlackClock "0:00:01"]

1. c4 {[%clk 0:03:00]}  Nf6 {[%clk 0:02:57]} 2. Nc3 {[%clk 0:03:00]}  c5 {[%clk 0:02:57]} 3. g3 {[%clk 0:03:00]}  d5 {[%clk 0:02:57]} 4. cxd5 {[%clk 0:03:01]}  Nxd5 {[%clk 0:02:58]} 5. Bg2 {[%clk 0:03:02]}  Nxc3 {[%clk 0:02:58]} 6. bxc3 {[%clk 0:03:01]}  e5 {[%clk 0:02:58]} 7. Nf3 {[%clk 0:03:00]}  Nc6 {[%clk 0:02:58]} 8. O-O {[%clk 0:03:00]}  Be7 {[%clk 0:02:58]} 9. d3 {[%clk 0:03:00]}  O-O {[%clk 0:02:56]} 10. Nd2 {[%clk 0:03:01]}  Rb8 {[%clk 0:02:53]} 11. a4 {[%clk 0:02:59]}  Na5 {[%clk 0:02:50]} 12. Bb2 {[%clk 0:02:54]}  b6 {[%clk 0:02:50]} 13. c4 {[%clk 0:02:54]}  Bd6 {[%clk 0:02:29]} 14. Ne4 {[%clk 0:02:52]}  Bc7 {[%clk 0:02:25]} 15. Nc3 {[%clk 0:02:49]}  Bb7 {[%clk 0:02:24]} 16. Bxb7 {[%clk 0:02:47]}  Rxb7 {[%clk 0:02:21]} 17. Nd5 {[%clk 0:02:48]}  Nc6 {[%clk 0:02:21]} 18. Bc3 {[%clk 0:02:45]}  Bb8 {[%clk 0:02:21]} 19. e4 {[%clk 0:02:42]}  f5 {[%clk 0:02:11]} 20. exf5 {[%clk 0:02:42]}  Rxf5 {[%clk 0:02:10]} 21. Qg4 {[%clk 0:02:42]}  Rbf7 {[%clk 0:02:05]} 22. Rae1 {[%clk 0:02:37]}  Ne7 {[%clk 0:01:50]} 23. Ne3 {[%clk 0:02:19]}  R5f6 {[%clk 0:01:46]} 24. Qe4 {[%clk 0:02:19]}  Rf3 {[%clk 0:01:11]} 25. Bxe5 {[%clk 0:02:11]}  Bxe5 {[%clk 0:01:12]} 26. Qxe5 {[%clk 0:02:12]}  h6 {[%clk 0:01:11]} 27. Qe4 {[%clk 0:02:09]}  Qd7 {[%clk 0:00:51]} 28. Ng4 {[%clk 0:02:08]}  Nc6 {[%clk 0:00:49]} 29. Re3 {[%clk 0:02:05]}  R3f5 {[%clk 0:00:22]} 30. f4 {[%clk 0:02:01]}  h5 {[%clk 0:00:20]} 31. Nf2 {[%clk 0:02:00]}  Nd4 {[%clk 0:00:15]} 32. Qe8+ {[%clk 0:01:57]}  Qxe8 {[%clk 0:00:15]} 33. Rxe8+ {[%clk 0:01:58]}  Rf8 {[%clk 0:00:16]} 34. Re7 {[%clk 0:01:53]}  R5f7 {[%clk 0:00:16]} 35. Re3 {[%clk 0:01:50]}  Rd7 {[%clk 0:00:13]} 36. Ne4 {[%clk 0:01:50]}  Nc2 {[%clk 0:00:10]} 37. Re2 {[%clk 0:01:50]}  Nb4 {[%clk 0:00:10]} 38. Ng5 {[%clk 0:01:50]}  Nxd3 {[%clk 0:00:10]} 39. Rd1 {[%clk 0:01:49]}  Nxf4 {[%clk 0:00:10]} 40. Rxd7 {[%clk 0:01:48]}  Nxe2+ {[%clk 0:00:10]} 41. Kg2 {[%clk 0:01:49]}  a5 {[%clk 0:00:06]} 42. Ne6 {[%clk 0:01:49]}  Rf6 {[%clk 0:00:05]} 43. Rxg7+ {[%clk 0:01:49]}  Kh8 {[%clk 0:00:05]} 44. Re7 {[%clk 0:01:50]}  h4 {[%clk 0:00:04]} 45. Nxc5 {[%clk 0:01:36]}  bxc5 {[%clk 0:00:05]} 46. Rxe2 {[%clk 0:01:35]}  hxg3 {[%clk 0:00:06]} 47. hxg3 {[%clk 0:01:36]}  Rb6 {[%clk 0:00:06]} 48. Re5 {[%clk 0:01:36]}  Rb4 {[%clk 0:00:06]} 49. Rxc5 {[%clk 0:01:36]}  Rxa4 {[%clk 0:00:06]} 50. Kf3 {[%clk 0:01:37]}  Ra3+ {[%clk 0:00:04]} 51. Ke4 {[%clk 0:01:37]}  Kg7 {[%clk 0:00:04]} 52. g4 {[%clk 0:01:34]}  a4 {[%clk 0:00:04]} 53. Ra5 {[%clk 0:01:34]}  Kf7 {[%clk 0:00:03]} 54. Kd5 {[%clk 0:01:32]}  Ke7 {[%clk 0:00:01]} 55. Kc6 {[%clk 0:01:31]}  Ke6 {[%clk 0:00:01]} 56. g5 {[%clk 0:01:30]}  Kf7 {[%clk 0:00:01]} 57. Kb5 {[%clk 0:01:29]} 1-0


[Site "https://www.chess.com"]

[Event "Titled Tuesday Blitz February 15 Early 2022"]
[White "Matlakov, Maxim"]
[Black "Kucuksari, Kaan"]
[WhiteFideId "4168003"]
[BlackFideId "6380166"]
[WhiteElo "2661"]
[BlackElo "2305"]
[Result "0-1"]
[Round "11"]
[TimeControl "180+1"]
[Date "2022.02.15"]
[WhiteClock "0:00:34"]
[BlackClock "0:00:06"]

1. d4 {[%clk 0:03:00]}  d5 {[%clk 0:02:59]} 2. Nf3 {[%clk 0:02:56]}  Nf6 {[%clk 0:02:59]} 3. c3 {[%clk 0:02:56]}  e6 {[%clk 0:02:54]} 4. Bf4 {[%clk 0:02:55]}  c5 {[%clk 0:02:54]} 5. e3 {[%clk 0:02:55]}  Bd6 {[%clk 0:02:52]} 6. Bg3 {[%clk 0:02:42]}  O-O {[%clk 0:02:51]} 7. Nbd2 {[%clk 0:02:42]}  Qb6 {[%clk 0:02:41]} 8. Rb1 {[%clk 0:02:40]}  Nbd7 {[%clk 0:02:31]} 9. Bd3 {[%clk 0:02:37]}  Qc7 {[%clk 0:02:27]} 10. O-O {[%clk 0:02:33]}  e5 {[%clk 0:02:26]} 11. dxe5 {[%clk 0:02:33]}  Nxe5 {[%clk 0:02:27]} 12. Nxe5 {[%clk 0:02:32]}  Bxe5 {[%clk 0:02:28]} 13. b4 {[%clk 0:02:31]}  Bxg3 {[%clk 0:02:24]} 14. hxg3 {[%clk 0:02:32]}  b6 {[%clk 0:02:12]} 15. bxc5 {[%clk 0:02:31]}  Qxc5 {[%clk 0:02:13]} 16. Rc1 {[%clk 0:02:23]}  Be6 {[%clk 0:02:07]} 17. Nb3 {[%clk 0:02:22]}  Qa3 {[%clk 0:02:04]} 18. Nd4 {[%clk 0:02:21]}  Qxa2 {[%clk 0:01:50]} 19. Ra1 {[%clk 0:02:18]}  Qb2 {[%clk 0:01:50]} 20. c4 {[%clk 0:01:53]}  Bg4 {[%clk 0:01:23]} 21. Qa4 {[%clk 0:01:49]}  dxc4 {[%clk 0:01:20]} 22. Bxc4 {[%clk 0:01:50]}  Ne4 {[%clk 0:01:04]} 23. f3 {[%clk 0:01:44]}  Nc5 {[%clk 0:00:53]} 24. Qd1 {[%clk 0:01:39]}  Bh5 {[%clk 0:00:52]} 25. Rc1 {[%clk 0:01:20]}  Bg6 {[%clk 0:00:33]} 26. Nc6 {[%clk 0:01:00]}  Qf6 {[%clk 0:00:32]} 27. Ne7+ {[%clk 0:00:59]}  Qxe7 {[%clk 0:00:32]} 28. e4 {[%clk 0:00:42]}  Rad8 {[%clk 0:00:29]} 29. Qc2 {[%clk 0:00:42]}  Qe5 {[%clk 0:00:28]} 30. Kh2 {[%clk 0:00:41]}  Qh5+ {[%clk 0:00:28]} 31. Kg1 {[%clk 0:00:41]}  Qe5 {[%clk 0:00:28]} 32. Kh2 {[%clk 0:00:41]}  b5 {[%clk 0:00:23]} 33. Ba2 {[%clk 0:00:39]}  Ne6 {[%clk 0:00:17]} 34. Qc6 {[%clk 0:00:34]}  Qh5+ {[%clk 0:00:15]} 35. Kg1 {[%clk 0:00:34]}  Nd4 {[%clk 0:00:16]} 36. Qb7 {[%clk 0:00:32]}  Ne2+ {[%clk 0:00:16]} 37. Kf2 {[%clk 0:00:33]}  Nxc1 {[%clk 0:00:16]} 38. Rxc1 {[%clk 0:00:34]}  Rd2+ {[%clk 0:00:17]} 39. Ke3 {[%clk 0:00:34]}  Rxa2 {[%clk 0:00:18]} 40. Rc8 {[%clk 0:00:34]}  Qg5+ {[%clk 0:00:16]} 41. f4 {[%clk 0:00:34]}  Qxg3+ {[%clk 0:00:15]} 42. Kd4 {[%clk 0:00:35]}  Rd2+ {[%clk 0:00:15]} 43. Ke5 {[%clk 0:00:35]}  f6+ {[%clk 0:00:13]} 44. Ke6 {[%clk 0:00:35]}  Qg4+ {[%clk 0:00:11]} 45. f5 {[%clk 0:00:36]}  Bxf5+ {[%clk 0:00:05]} 46. exf5 {[%clk 0:00:36]}  Qe2+ {[%clk 0:00:05]} 47. Qe4 {[%clk 0:00:34]}  Qxe4# {[%clk 0:00:06]} 0-1


[Site "https://www.chess.com"]

[Event "Titled Tuesday Blitz February 15 Early 2022"]
[White "Moksh Amit Doshi"]
[Black "Srihari L R"]
[WhiteFideId "25064967"]
[BlackFideId "46617116"]
[WhiteElo "2245"]
[BlackElo "2121"]
[Result "0-1"]
[Round "11"]
[TimeControl "180+1"]
[Date "2022.02.15"]
[WhiteClock "0:00:05"]
[BlackClock "0:00:27"]

1. d4 {[%clk 0:02:58]}  d6 {[%clk 0:02:59]} 2. Nf3 {[%clk 0:02:58]}  Nf6 {[%clk 0:03:00]} 3. c4 {[%clk 0:02:58]}  Nbd7 {[%clk 0:03:00]} 4. Nc3 {[%clk 0:02:58]}  e5 {[%clk 0:03:01]} 5. e4 {[%clk 0:02:58]}  Be7 {[%clk 0:03:01]} 6. Be2 {[%clk 0:02:54]}  O-O {[%clk 0:03:01]} 7. O-O {[%clk 0:02:55]}  c6 {[%clk 0:03:02]} 8. Be3 {[%clk 0:02:53]}  Qc7 {[%clk 0:03:01]} 9. Qc2 {[%clk 0:02:52]}  Re8 {[%clk 0:03:00]} 10. dxe5 {[%clk 0:02:47]}  dxe5 {[%clk 0:03:00]} 11. h3 {[%clk 0:02:42]}  h6 {[%clk 0:03:00]} 12. a3 {[%clk 0:02:38]}  a5 {[%clk 0:02:59]} 13. Rfd1 {[%clk 0:02:18]}  Nf8 {[%clk 0:02:55]} 14. Na4 {[%clk 0:02:12]}  Be6 {[%clk 0:02:50]} 15. Bb6 {[%clk 0:02:01]}  Qb8 {[%clk 0:02:49]} 16. Nc5 {[%clk 0:01:50]}  N8d7 {[%clk 0:02:25]} 17. Nxd7 {[%clk 0:01:37]}  Nxd7 {[%clk 0:02:25]} 18. Be3 {[%clk 0:01:38]}  a4 {[%clk 0:02:25]} 19. c5 {[%clk 0:01:17]}  Bb3 {[%clk 0:02:21]} 20. Qc3 {[%clk 0:01:11]}  Bxd1 {[%clk 0:02:21]} 21. Rxd1 {[%clk 0:01:12]}  Qc7 {[%clk 0:02:21]} 22. Bc4 {[%clk 0:01:10]}  Bxc5 {[%clk 0:01:45]} 23. Rxd7 {[%clk 0:01:06]}  Qxd7 {[%clk 0:01:44]} 24. Bxc5 {[%clk 0:01:06]}  b5 {[%clk 0:01:33]} 25. Ba2 {[%clk 0:01:04]}  Qd1+ {[%clk 0:01:23]} 26. Kh2 {[%clk 0:01:04]}  Qa1 {[%clk 0:01:23]} 27. Bxf7+ {[%clk 0:00:42]}  Kxf7 {[%clk 0:01:22]} 28. Nxe5+ {[%clk 0:00:43]}  Kg8 {[%clk 0:01:22]} 29. Nxc6 {[%clk 0:00:41]}  Qa2 {[%clk 0:01:05]} 30. Ne7+ {[%clk 0:00:21]}  Kh7 {[%clk 0:01:02]} 31. Nf5 {[%clk 0:00:21]}  Rg8 {[%clk 0:00:58]} 32. Bd4 {[%clk 0:00:19]}  Qf7 {[%clk 0:00:56]} 33. f3 {[%clk 0:00:17]}  Rac8 {[%clk 0:00:53]} 34. Qd3 {[%clk 0:00:18]}  Rgd8 {[%clk 0:00:48]} 35. Qe3 {[%clk 0:00:15]}  Qc7+ {[%clk 0:00:41]} 36. f4 {[%clk 0:00:12]}  g6 {[%clk 0:00:31]} 37. Ng3 {[%clk 0:00:07]}  Qc1 {[%clk 0:00:28]} 38. Qf2 {[%clk 0:00:05]}  Rc2 {[%clk 0:00:27]} 0-1


[Site "https://www.chess.com"]

[Event "Titled Tuesday Blitz February 15 Early 2022"]
[White "Moroni, Luca Jr"]
[Black "Safarli, Eltaj"]
[WhiteFideId "865834"]
[BlackFideId "13402129"]
[WhiteElo "2573"]
[BlackElo "2634"]
[Result "0-1"]
[Round "11"]
[TimeControl "180+1"]
[Date "2022.02.15"]
[WhiteClock "0:00:06"]
[BlackClock "0:00:19"]

1. d4 {[%clk 0:03:00]}  Nf6 {[%clk 0:02:59]} 2. Bf4 {[%clk 0:03:00]}  g6 {[%clk 0:02:59]} 3. Nc3 {[%clk 0:03:00]}  d5 {[%clk 0:02:59]} 4. Nb5 {[%clk 0:02:59]}  Na6 {[%clk 0:02:59]} 5. e3 {[%clk 0:02:59]}  Bg7 {[%clk 0:02:59]} 6. h3 {[%clk 0:02:58]}  O-O {[%clk 0:02:59]} 7. Nf3 {[%clk 0:02:57]}  Ne4 {[%clk 0:02:59]} 8. Be2 {[%clk 0:02:47]}  c6 {[%clk 0:03:00]} 9. Na3 {[%clk 0:02:40]}  Qb6 {[%clk 0:02:54]} 10. Qc1 {[%clk 0:02:35]}  c5 {[%clk 0:02:49]} 11. c3 {[%clk 0:02:34]}  Bd7 {[%clk 0:02:47]} 12. O-O {[%clk 0:02:33]}  Rfc8 {[%clk 0:02:45]} 13. Be5 {[%clk 0:02:31]}  Bh6 {[%clk 0:02:42]} 14. Nd2 {[%clk 0:02:12]}  f6 {[%clk 0:02:36]} 15. Nxe4 {[%clk 0:02:04]}  fxe5 {[%clk 0:02:36]} 16. Bxa6 {[%clk 0:01:55]}  exd4 {[%clk 0:02:20]} 17. Bd3 {[%clk 0:01:25]}  dxe4 {[%clk 0:02:20]} 18. Bxe4 {[%clk 0:01:26]}  dxe3 {[%clk 0:02:20]} 19. fxe3 {[%clk 0:01:12]}  Qc7 {[%clk 0:02:17]} 20. Qd2 {[%clk 0:01:02]}  Rd8 {[%clk 0:02:05]} 21. Qd5+ {[%clk 0:00:56]}  e6 {[%clk 0:01:59]} 22. Qxb7 {[%clk 0:00:40]}  Qxb7 {[%clk 0:01:59]} 23. Bxb7 {[%clk 0:00:41]}  Rab8 {[%clk 0:02:00]} 24. Bf3 {[%clk 0:00:39]}  Rxb2 {[%clk 0:01:52]} 25. Nc4 {[%clk 0:00:39]}  Rbb8 {[%clk 0:01:45]} 26. Bg4 {[%clk 0:00:36]}  Kg7 {[%clk 0:01:36]} 27. Rad1 {[%clk 0:00:37]}  Bb5 {[%clk 0:01:26]} 28. Rxd8 {[%clk 0:00:36]}  Rxd8 {[%clk 0:01:27]} 29. Bxe6 {[%clk 0:00:36]}  Re8 {[%clk 0:01:13]} 30. Rf7+ {[%clk 0:00:32]}  Kh8 {[%clk 0:01:13]} 31. Bd5 {[%clk 0:00:31]}  Bxc4 {[%clk 0:01:03]} 32. Bxc4 {[%clk 0:00:32]}  Rxe3 {[%clk 0:01:03]} 33. Rxa7 {[%clk 0:00:32]}  Rxc3 {[%clk 0:01:03]} 34. Bd5 {[%clk 0:00:27]}  Be3+ {[%clk 0:00:56]} 35. Kf1 {[%clk 0:00:27]}  Rc2 {[%clk 0:00:52]} 36. a4 {[%clk 0:00:26]}  c4 {[%clk 0:00:50]} 37. Re7 {[%clk 0:00:25]}  Bb6 {[%clk 0:00:45]} 38. Rb7 {[%clk 0:00:22]}  Rf2+ {[%clk 0:00:37]} 39. Ke1 {[%clk 0:00:22]}  Rb2 {[%clk 0:00:38]} 40. Kd1 {[%clk 0:00:17]}  c3 {[%clk 0:00:38]} 41. Be4 {[%clk 0:00:07]}  Rd2+ {[%clk 0:00:38]} 42. Ke1 {[%clk 0:00:06]}  Bf2+ {[%clk 0:00:33]} 43. Kf1 {[%clk 0:00:06]}  Bg3 {[%clk 0:00:22]} 44. Rb3 {[%clk 0:00:05]}  Rf2+ {[%clk 0:00:21]} 45. Kg1 {[%clk 0:00:05]}  Re2 {[%clk 0:00:21]} 46. Bd3 {[%clk 0:00:05]}  Re1+ {[%clk 0:00:20]} 47. Bf1 {[%clk 0:00:05]}  c2 {[%clk 0:00:20]} 48. Rxg3 {[%clk 0:00:05]}  c1=Q {[%clk 0:00:20]} 49. Rf3 {[%clk 0:00:06]}  Qc5+ {[%clk 0:00:19]} 0-1


[Site "https://www.chess.com"]

[Event "Titled Tuesday Blitz February 15 Early 2022"]
[White "Mosutha, Thuso"]
[Black "Vusatiuk, Vladimir"]
[WhiteFideId "11302550"]
[BlackFideId "14118610"]
[WhiteElo "2028"]
[BlackElo "2157"]
[Result "0-1"]
[Round "11"]
[TimeControl "180+1"]
[Date "2022.02.15"]
[WhiteClock "0:00:36"]
[BlackClock "0:00:05"]

1. d4 {[%clk 0:03:00]}  g6 {[%clk 0:02:55]} 2. Bf4 {[%clk 0:03:01]}  Bg7 {[%clk 0:02:54]} 3. Nf3 {[%clk 0:03:01]}  d6 {[%clk 0:02:50]} 4. e3 {[%clk 0:03:01]}  Nd7 {[%clk 0:02:49]} 5. h3 {[%clk 0:03:01]}  e5 {[%clk 0:02:44]} 6. Bh2 {[%clk 0:03:00]}  Ne7 {[%clk 0:02:40]} 7. Be2 {[%clk 0:03:01]}  O-O {[%clk 0:02:40]} 8. O-O {[%clk 0:03:01]}  f5 {[%clk 0:02:41]} 9. c4 {[%clk 0:03:01]}  e4 {[%clk 0:02:40]} 10. Nfd2 {[%clk 0:03:00]}  Nf6 {[%clk 0:02:27]} 11. Nc3 {[%clk 0:03:01]}  Be6 {[%clk 0:02:17]} 12. f3 {[%clk 0:02:59]}  exf3 {[%clk 0:02:16]} 13. Bxf3 {[%clk 0:03:00]}  c6 {[%clk 0:02:10]} 14. b3 {[%clk 0:03:00]}  d5 {[%clk 0:02:09]} 15. cxd5 {[%clk 0:02:59]}  Nexd5 {[%clk 0:02:07]} 16. Nxd5 {[%clk 0:02:59]}  Nxd5 {[%clk 0:02:04]} 17. Nc4 {[%clk 0:02:32]}  Nxe3 {[%clk 0:01:41]} 18. Nxe3 {[%clk 0:02:27]}  Bxd4 {[%clk 0:01:40]} 19. Qe2 {[%clk 0:01:50]}  f4 {[%clk 0:01:31]} 20. Bxf4 {[%clk 0:01:47]}  Rxf4 {[%clk 0:01:29]} 21. Rae1 {[%clk 0:01:46]}  Qb6 {[%clk 0:00:45]} 22. Kh1 {[%clk 0:01:45]}  Bxe3 {[%clk 0:00:45]} 23. Qxe3 {[%clk 0:01:46]}  Qxe3 {[%clk 0:00:46]} 24. Rxe3 {[%clk 0:01:46]}  Re8 {[%clk 0:00:27]} 25. Rfe1 {[%clk 0:01:46]}  Kf7 {[%clk 0:00:25]} 26. b4 {[%clk 0:01:40]}  Bd7 {[%clk 0:00:17]} 27. b5 {[%clk 0:01:35]}  Rxe3 {[%clk 0:00:16]} 28. Rxe3 {[%clk 0:01:36]}  cxb5 {[%clk 0:00:16]} 29. Bxb7 {[%clk 0:01:37]}  Ra4 {[%clk 0:00:16]} 30. Bd5+ {[%clk 0:01:37]}  Kf6 {[%clk 0:00:16]} 31. Bb3 {[%clk 0:01:36]}  Rd4 {[%clk 0:00:15]} 32. Rf3+ {[%clk 0:01:36]}  Ke7 {[%clk 0:00:14]} 33. Rf7+ {[%clk 0:01:36]}  Kd6 {[%clk 0:00:14]} 34. Rxh7 {[%clk 0:01:36]}  a5 {[%clk 0:00:12]} 35. Rg7 {[%clk 0:01:36]}  Bf5 {[%clk 0:00:13]} 36. Bf7 {[%clk 0:01:34]}  b4 {[%clk 0:00:09]} 37. Bxg6 {[%clk 0:01:34]}  Bxg6 {[%clk 0:00:10]} 38. Rxg6+ {[%clk 0:01:35]}  Kc5 {[%clk 0:00:10]} 39. Rg5+ {[%clk 0:01:35]}  Rd5 {[%clk 0:00:09]} 40. Rg8 {[%clk 0:01:32]}  a4 {[%clk 0:00:08]} 41. h4 {[%clk 0:01:08]}  b3 {[%clk 0:00:05]} 42. axb3 {[%clk 0:01:09]}  axb3 {[%clk 0:00:06]} 43. Rb8 {[%clk 0:01:08]}  Kc4 {[%clk 0:00:06]} 44. Kh2 {[%clk 0:00:57]}  Rb5 {[%clk 0:00:06]} 45. Rc8+ {[%clk 0:00:57]}  Kd3 {[%clk 0:00:02]} 46. Rd8+ {[%clk 0:00:57]}  Kc2 {[%clk 0:00:02]} 47. Rc8+ {[%clk 0:00:57]}  Kb2 {[%clk 0:00:02]} 48. g4 {[%clk 0:00:50]}  Ka2 {[%clk 0:00:02]} 49. Ra8+ {[%clk 0:00:50]}  Kb1 {[%clk 0:00:02]} 50. Re8 {[%clk 0:00:49]}  b2 {[%clk 0:00:02]} 51. g5 {[%clk 0:00:47]}  Kc2 {[%clk 0:00:01]} 52. Re2+ {[%clk 0:00:47]}  Kd3 {[%clk 0:00:02]} 53. Rxb2 {[%clk 0:00:43]}  Rxb2+ {[%clk 0:00:03]} 54. Kg3 {[%clk 0:00:44]}  Ke4 {[%clk 0:00:03]} 55. Kg4 {[%clk 0:00:44]}  Rg2+ {[%clk 0:00:03]} 56. Kh5 {[%clk 0:00:44]}  Kf5 {[%clk 0:00:04]} 57. g6 {[%clk 0:00:41]}  Rg4 {[%clk 0:00:02]} 58. Kh6 {[%clk 0:00:40]}  Rxh4+ {[%clk 0:00:03]} 59. Kg7 {[%clk 0:00:39]}  Rg4 {[%clk 0:00:04]} 60. Kf7 {[%clk 0:00:36]}  Rxg6 {[%clk 0:00:05]} 0-1


[Site "https://www.chess.com"]

[Event "Titled Tuesday Blitz February 15 Early 2022"]
[White "Nadeev, Sergey"]
[Black "Singh, Ojasva"]
[WhiteFideId "4180038"]
[BlackFideId "25681958"]
[WhiteElo "2369"]
[BlackElo "1741"]
[Result "1-0"]
[Round "11"]
[TimeControl "180+1"]
[Date "2022.02.15"]
[WhiteClock "0:01:03"]
[BlackClock "0:00:02"]

1. d4 {[%clk 0:03:00]}  d5 {[%clk 0:02:59]} 2. Bf4 {[%clk 0:03:01]}  Nf6 {[%clk 0:02:58]} 3. e3 {[%clk 0:03:01]}  c5 {[%clk 0:02:59]} 4. dxc5 {[%clk 0:03:01]}  Nc6 {[%clk 0:02:57]} 5. Bb5 {[%clk 0:03:00]}  Qa5+ {[%clk 0:02:53]} 6. Nc3 {[%clk 0:02:59]}  e6 {[%clk 0:02:53]} 7. a3 {[%clk 0:02:58]}  Ne4 {[%clk 0:02:51]} 8. Ne2 {[%clk 0:02:57]}  Nxc3 {[%clk 0:01:54]} 9. Nxc3 {[%clk 0:02:54]}  Bd7 {[%clk 0:01:54]} 10. Bxc6 {[%clk 0:02:51]}  Bxc6 {[%clk 0:01:48]} 11. b4 {[%clk 0:02:52]}  Qd8 {[%clk 0:01:47]} 12. O-O {[%clk 0:02:44]}  Be7 {[%clk 0:01:47]} 13. Rb1 {[%clk 0:02:41]}  O-O {[%clk 0:01:40]} 14. Qd3 {[%clk 0:02:41]}  f6 {[%clk 0:01:22]} 15. Rfd1 {[%clk 0:02:40]}  Qc8 {[%clk 0:01:17]} 16. Bg3 {[%clk 0:02:36]}  Rd8 {[%clk 0:01:14]} 17. Qe2 {[%clk 0:02:30]}  e5 {[%clk 0:01:04]} 18. b5 {[%clk 0:02:28]}  Be8 {[%clk 0:01:03]} 19. Nxd5 {[%clk 0:02:03]}  Bxc5 {[%clk 0:01:02]} 20. a4 {[%clk 0:02:00]}  Bf7 {[%clk 0:01:01]} 21. c4 {[%clk 0:01:59]}  Bf8 {[%clk 0:00:11]} 22. f4 {[%clk 0:01:55]}  exf4 {[%clk 0:00:10]} 23. Bxf4 {[%clk 0:01:51]}  Qc5 {[%clk 0:00:09]} 24. Kh1 {[%clk 0:01:44]}  Bxd5 {[%clk 0:00:09]} 25. cxd5 {[%clk 0:01:42]}  Rac8 {[%clk 0:00:05]} 26. e4 {[%clk 0:01:40]}  Qc4 {[%clk 0:00:05]} 27. Qf3 {[%clk 0:01:20]}  Qxa4 {[%clk 0:00:05]} 28. e5 {[%clk 0:01:16]}  fxe5 {[%clk 0:00:04]} 29. Bxe5 {[%clk 0:01:17]}  Qc2 {[%clk 0:00:02]} 30. Rf1 {[%clk 0:01:13]}  Kh8 {[%clk 0:00:01]} 31. h3 {[%clk 0:01:05]}  Qc4 {[%clk 0:00:01]} 32. Qg3 {[%clk 0:01:04]}  Qxd5 {[%clk 0:00:01]} 33. Rxf8+ {[%clk 0:01:03]}  Rxf8 {[%clk 0:00:02]} 34. Qxg7# {[%clk 0:01:03]} 1-0


[Site "https://www.chess.com"]